[Event "Czech Open-Rapid 2022"]
[Site "Pardubice"]
[Date "2022.07.20"]
[Round "1.37"]
[White "Lang, Maximilian"]
[Black "Ibrahim, Emad Eldin"]
[Result "0-1"]
[ECO "A46"]
[WhiteElo "1408"]
[BlackElo "2028"]
[Annotator "TA"]
[PlyCount "74"]
[EventDate "2022.07.20"]
[EventType "swiss"]
[EventCountry "CZE"]
[SourceTitle "playchess.com"]
[Source "ChessBase"]
[SourceQuality "1"]
[TimeControl "1200+10"]

{[%evp 9,74,19,41,0,0,-24,-19,-19,-12,-92,-101,-98,-61,-64,-63,-63,0,-56,0,0,0,-6,0,-37,-19,-19,-8,-32,-17,-47,-17,1,-13,-14,-13,-2,0,0,0,0,13,-75,-76,-321,-314,-324,-322,-799,-795,-1095,-1077,-1163,-1177,-1209,-1195,-1159,-1139,-1200,-1224,-2075,-2125,-2046,-1945,-2614,-2619,-29982,-29983]} 1. d4 {[%emt 0:00:04]} Nf6 {[%emt 0:00:03]} 2. Nf3 {[%emt 0:00:02]} c5 {[%emt 0:00:06]} 3. e3 {[%emt 0:00:45]} g6 {[%emt 0:00:04]} 4. dxc5 {[%emt 0:00:57]} Qa5+ {[%emt 0:00:05]} 5. Bd2 {[%emt 0:00:08]} Qxc5 {[%emt 0:00:01]} 6. Nc3 {[%emt 0:00:10] A48: 1 d4 Nf6 2 Nf3 g6: Torre, London and Colle Systems.} Bg7 {[%emt 0:00:05] [#]} 7. Rb1 $146 {[%emt 0:00:50]} ({Predecessor:} 7. Bd3 a6 8. O-O O-O 9. e4 d6 10. h3 Nbd7 11. Be3 Qc7 12. Qe2 b5 13. Bf4 {½-½ (21) Pekar,K (2106)-Madar,M (2032) Slovakia 2019}) 7... O-O {[%emt 0:00:52]} 8. Bd3 {[%emt 0:00:21] The position is equal.} d6 {[%emt 0:00:53]} 9. Ne4 {[%emt 0:00:19]} (9. e4 $11) 9... Nxe4 $17 {[%emt 0:00:30]} 10. Bxe4 {[%emt 0:00:03]} Nd7 {[%emt 0:00:04]} 11. O-O {[%emt 0:00:22]} Nf6 {[%emt 0:00:04]} 12. Bd3 {[%emt 0:00:10]} a5 {[%emt 0:00:29]} (12... e5 $1 $15 13. Bc3 Qc6) 13. a3 {[%emt 0:00:07]} ({Better is} 13. e4 $11) 13... a4 {[%emt 0:00:13]} (13... e5 $1 $15 14. e4 d5) 14. Bc3 {[%emt 0:00:34]} Bd7 {[%emt 0:00:41]} 15. Bb4 {[%emt 0:00:52]} Qb6 {[%emt 0:00:56]} 16. Bc3 {[%emt 0:00:08]} Rfc8 {[%emt 0:00:42]} 17. Bd4 {[%emt 0:00:33]} Qa5 {[%emt 0:00:04] Strongly threatening ...e5.} 18. Bc3 {[%emt 0:00:10]} Qc7 {[%emt 0:00:59]} 19. Qe1 {[%emt 0:00:14]} Nd5 {[%emt 0:00:57][%cal Rd5c3]} 20. Bxg7 {[%emt 0:00:19]} Kxg7 {[%emt 0:00:02]} 21. c3 {[%emt 0:01:16]} Nb6 {[%emt 0:00:27]} 22. Nd4 {[%emt 0:00:31]} Ra5 {[%emt 0:01:14]} 23. Qe2 {[%emt 0:00:28]} e5 {[%emt 0:01:22][%cal Be7e5,Be5e4][%mdl 32]} 24. Nc2 {[%emt 0:02:51]} d5 {[%emt 0:00:25] [#] aiming for ...e4.} 25. e4 {[%emt 0:01:45]} (25. f3 $11) 25... dxe4 {[%emt 0:01:35]} 26. Bxe4 {[%emt 0:00:26] Loses the game.} (26. Qxe4 $17 {was the only defense.} Bf5 27. Qe2) 26... f5 $19 {[%emt 0:00:23]} 27. Bd3 {[%emt 0:00:24]} e4 {[%emt 0:00:12]} 28. Bb5 $2 {[%emt 0:00:02]} (28. Rfe1) 28... Bxb5 {[%emt 0:00:08]} 29. c4 {[%emt 0:00:03]} Bxc4 {[%emt 0:01:19]} 30. Qd2 {[%emt 0:00:09]} Rd5 {[%emt 0:00:02]} 31. Qc3+ {[%emt 0:00:10]} Qe5 {[%emt 0:00:02]} 32. Qxe5+ {[%emt 0:00:16]} Rxe5 {[%emt 0:00:01]} 33. Rfc1 {[%emt 0:00:07]} Bd3 {[%emt 0:00:05]} 34. Ra1 {[%emt 0:00:17]} Rxc2 {[%emt 0:00:03]} 35. Rxc2 {[%emt 0:00:11]} Bxc2 {[%emt 0:00:02]} 36. Rc1 {[%emt 0:00:10] [#]} Rd5 $1 {[%emt 0:00:02]} 37. g3 {[%emt 0:00:02]} (37. Rf1 Rb5) 37... Rd1+ {[%emt 0:00:02] Weighted Error Value: White=0.97/Black=0.10 (very precise)} 0-1

[Event "Czech Open-Rapid 2022"]
[Site "Pardubice"]
[Date "2022.07.20"]
[Round "1.38"]
[White "Contos, Vaclav sr"]
[Black "Mikolas, Petr"]
[Result "1-0"]
[ECO "E81"]
[WhiteElo "2074"]
[BlackElo "1555"]
[Annotator "TA"]
[PlyCount "141"]
[EventDate "2022.07.20"]
[EventType "swiss"]
[EventCountry "CZE"]
[SourceTitle "playchess.com"]
[Source "ChessBase"]
[SourceQuality "1"]
[TimeControl "1200+10"]

{[%evp 13,141,29,48,34,52,47,77,74,75,68,68,56,71,56,160,50,158,136,119,68,65,61,106,109,116,65,100,85,391,93,81,69,82,72,104,53,40,0,0,-48,-48,-44,26,13,32,27,36,30,39,16,41,44,102,108,105,97,103,103,109,81,118,-506,122,38,34,15,21,18,16,-31,34,8,15,8,589,578,571,543,531,524,506,487,403,318,523,303,318,317,277,220,217,124,92,224,225,192,487,178,169,165,220,207,220,169,223,199,202,176,204,202,196,204,195,179,195,197,194,195,227,229,214,226,250,250,2259,1985,6087,7120,6412,3100]} 1. d4 {[%emt 0:00:02]} Nf6 2. c4 {[%emt 0:00:04]} g6 {[%emt 0:00:09]} 3. f3 {[%emt 0:00:02]} Bg7 {[%emt 0:00:10]} 4. e4 {[%emt 0:00:03]} d6 {[%emt 0:00:03]} 5. Nc3 {[%emt 0:00:02]} O-O {[%emt 0:00:06]} 6. Nge2 {[%emt 0:00:02]} Nbd7 {[%emt 0:01:08]} 7. Bg5 {[%emt 0:00:09]} c5 {[%emt 0:00:41]} 8. Qd2 {[%emt 0:00:07] E81: King's Indian: Sämisch: 6th move deviations (including 6 Be3 c6).} cxd4 {[%emt 0:02:42]} 9. Nxd4 {[%emt 0:00:03]} a6 {[%emt 0:00:25]} 10. Be2 {[%emt 0:00:09] White is better.} Re8 {[%emt 0:01:48] [#]} 11. Rc1 $146 {[%emt 0:01:02]} ({Predecessor:} 11. O-O Qc7 12. Kh1 Nc5 13. Rac1 Ne6 14. Nd5 Qc5 15. Nb3 Qc6 16. Na5 Qc5 17. Be3 {1-0 (25) Jakobsen,O (2387)-Hartsteen,M (1973) Copenhagen 2006}) 11... Nc5 {[%emt 0:00:38]} 12. O-O {[%emt 0:00:20]} Ne6 {[%emt 0:00:48]} 13. Be3 {[%emt 0:00:14]} Qc7 {[%emt 0:00:41]} (13... Nxd4 $14 14. Bxd4 (14. Qxd4 Ng4 $11) 14... Qa5) 14. Nxe6 {[%emt 0:00:45]} (14. Nd5 $16 Qb8 15. Nb6) 14... fxe6 {[%emt 0:00:29]} (14... Bxe6 $14 15. Nd5 Bxd5 16. cxd5 Qd7) 15. Na4 {[%emt 0:00:19]} Nd7 {[%emt 0:00:53]} 16. Rc2 {[%emt 0:00:34]} (16. c5 $16) 16... Nc5 $14 17. Nc3 {[%emt 0:00:51]} b6 {[%emt 0:00:53]} 18. b4 {[%emt 0:00:08]} Nd7 {[%emt 0:00:02]} 19. Na4 {[%emt 0:00:13]} (19. Rd1 $16) 19... a5 {[%emt 0:03:11]} 20. c5 {[%emt 0:02:19]} axb4 $2 {[%emt 0:00:03][%mdl 8192]} (20... bxc5 $16 {is a better chance.} 21. bxc5 Nxc5) 21. Nxb6 $2 {[%emt 0:00:01]} (21. cxb6 $18 {is the precise move to win.} Qd8 22. Bb5) 21... Rb8 $16 {[%emt 0:04:01]} 22. Nxc8 {[%emt 0:02:04]} Rexc8 {[%emt 0:00:11]} 23. Ba6 {[%emt 0:00:02]} Bc3 {[%emt 0:01:03] [#]} 24. Qe2 {[%emt 0:01:18]} (24. cxd6 $1 $16 Qa5 25. Qe2) 24... Rd8 {[%emt 0:00:18]} 25. Bc4 {[%emt 0:00:25] A strong pair of Bishops.} Nxc5 {[%emt 0:00:11]} 26. Bxc5 {[%emt 0:00:17]} (26. a3 $11) 26... Qxc5+ $15 {[%emt 0:00:00]} 27. Kh1 {[%emt 0:00:02]} Kg7 {[%emt 0:00:51]} (27... d5 $15 28. Bb3 Kh8) 28. Bxe6 $11 {[%emt 0:00:06]} Kf6 {[%emt 0:00:30]} 29. Bb3 {[%emt 0:00:13]} Kg7 {[%emt 0:00:34]} 30. f4 {[%emt 0:00:02]} Rf8 {[%emt 0:00:01]} 31. f5 {[%emt 0:00:07]} gxf5 {[%emt 0:00:03]} 32. exf5 {[%emt 0:00:22]} Qe5 {[%emt 0:00:21]} ({Black should play} 32... Kh8 $14) 33. Qg4+ $16 {[%emt 0:00:10]} ({But not} 33. Qh5 e6 $14) 33... Kh8 {[%emt 0:00:02][%cal Oe7e6]} 34. Re2 {[%emt 0:00:10]} Qb5 {[%emt 0:01:09]} 35. Bc4 {[%emt 0:00:19]} Qd7 {[%emt 0:00:02]} 36. Qe4 {[%emt 0:01:13] 0x0.00198a07bc75dp-1022s more active pieces.} Be5 {[%emt 0:00:07][%cal Oe7e6]} 37. Be6 $2 {[%emt 0:00:12][%mdl 8192] [#]} (37. Re3 $16) 37... Qb7 $2 {[%emt 0:00:08]} ({Black should try} 37... Qxe6 $1 $19 {[%mdl 512]} 38. g3 Qf7) 38. Qxb7 {[%emt 0:00:24]} (38. Qc2 $16) 38... Rxb7 $14 {[%emt 0:00:01]} 39. g4 {[%emt 0:00:07]} h6 {[%emt 0:00:25]} 40. Rc1 {[%emt 0:00:02]} Kg7 {[%emt 0:00:08]} 41. Rc4 {[%emt 0:00:06]} (41. Re4 $11 {might be stronger.}) 41... Kf6 {[%emt 0:00:39]} (41... b3 $15 42. axb3 Rxb3) 42. Re3 {[%emt 0:00:20]} Rfb8 {[%emt 0:00:12]} 43. Rh3 {[%emt 0:00:13]} b3 $2 {[%emt 0:00:38][%mdl 8192]} (43... Kg7 $11) 44. Rxh6+ $18 {[%emt 0:00:17]} Kg7 {[%emt 0:00:07]} 45. Rg6+ {[%emt 0:00:02]} Kh7 {[%emt 0:00:10] ( -> ...b2)} 46. g5 {[%emt 0:00:08][%cal Rc4h4]} (46. axb3 Rxb3 47. Rc8 Rxc8 48. Bxb3 Rb8 $14) 46... Rb4 {[%emt 0:00:01]} 47. Rxb4 {[%emt 0:00:13]} Rxb4 {[%emt 0:00:00]} 48. Bxb3 {[%emt 0:00:00][%mdl 4096] Endgame KRB-KRB} Rg4 $2 {[%emt 0:00:08]} (48... Rh4 49. Re6 Kh8 50. Rxe7 Rxh2+ 51. Kg1 Rh5) 49. Rh6+ {[%emt 0:01:08]} Kg7 {[%emt 0:00:01]} 50. Rh5 {[%emt 0:00:03]} Bf4 {[%emt 0:01:03]} 51. g6 {[%emt 0:00:14] And now Rh7+ would win.} Bh6 {[%emt 0:00:01]} 52. Rh3 {[%emt 0:00:14]} (52. Be6 $18 {[%cal Of5f6] Threatens to win with f6+!} Rd4 53. Kg2) 52... Rf4 $16 {[%emt 0:00:11]} 53. Be6 {[%emt 0:00:05]} (53. Bc2 $16) 53... Ra4 {[%emt 0:00:02]} 54. Rg3 {[%emt 0:00:10]} Kf6 $2 {[%emt 0:00:03]} (54... Rd4 {was necessary.} 55. Ra3 Rd2) 55. Rg2 $2 {[%emt 0:00:05]} (55. g7 Bxg7 56. Rg6+ Ke5 57. Rxg7) 55... Bg7 $18 {[%emt 0:00:16]} 56. Kg1 {[%emt 0:00:06]} Ke5 {[%emt 0:00:09]} (56... Rd4 $142 57. Rg3 Rd1+ 58. Kg2 Rd2+ 59. Kh3 d5) 57. Re2+ {[%emt 0:00:07]} Kf4 {[%emt 0:00:05]} 58. Kg2 {[%emt 0:00:07]} Bf6 {[%emt 0:00:16]} (58... d5 {keeps fighting.} 59. h4 (59. Bxd5 Kxf5 60. Bb3 Rg4+ 61. Kh3 Kg5 $16) 59... d4 60. Rf2+ Ke5) 59. h3 {[%emt 0:00:05]} Kg5 {[%emt 0:00:09]} 60. Rf2 {[%emt 0:00:11]} Ra3 {[%emt 0:00:05]} 61. Rf3 {[%emt 0:00:06]} Ra4 {[%emt 0:00:01]} 62. Rg3+ {[%emt 0:00:06]} Kh6 {[%emt 0:00:01]} 63. Bb3 {[%emt 0:00:07]} Rf4 {[%emt 0:00:04]} 64. Rf3 {[%emt 0:00:03]} Rb4 {[%emt 0:00:14]} 65. Kf2 {[%emt 0:00:07]} Kg5 {[%emt 0:00:28]} 66. Rg3+ {[%emt 0:00:09]} Kh6 {[%emt 0:00:01]} 67. Ke2 {[%emt 0:00:03]} Rf4 {[%emt 0:00:15]} 68. Be6 {[%emt 0:00:10] Black must now prevent Rg4.} Kg7 $2 {[%emt 0:00:14]} (68... Ra4 69. Kf3 Ra3+ 70. Bb3 Ra5) 69. Rg4 {[%emt 0:00:28] White is clearly winning.} Rxg4 {[%emt 0:00:29]} 70. hxg4 {[%emt 0:00:01] Threatening mate with Kd3.} Kh6 {[%emt 0:00:01]} 71. a4 {[%emt 0:00:04] Weighted Error Value: White=0.60/Black=0.58} (71. Kd3 $142 Bh4 72. a4) 1-0

[Event "Czech Open-Rapid 2022"]
[Site "Pardubice"]
[Date "2022.07.20"]
[Round "1.39"]
[White "Cermak, Dusan"]
[Black "Dosedel, Jiri"]
[Result "0-1"]
[ECO "B07"]
[WhiteElo "1684"]
[BlackElo "2008"]
[Annotator "TA"]
[PlyCount "48"]
[EventDate "2022.07.20"]
[EventType "swiss"]
[EventCountry "CZE"]
[SourceTitle "playchess.com"]
[Source "ChessBase"]
[SourceQuality "1"]
[TimeControl "1200+10"]

{[%evp 10,48,38,32,60,28,58,-14,15,0,15,10,9,6,10,0,12,-123,-102,-231,-205,-418,-417,-494,-500,-959,-947,-932,-616,-1003,-1016,-983,-993,-1743,-1737,-29987,-29988,-29988,-29988,-29989,-29990]} 1. e4 {[%emt 0:00:03]} d6 {[%emt 0:00:01]} 2. d4 {[%emt 0:00:02]} Nf6 {[%emt 0:00:02]} 3. Nc3 {[%emt 0:00:01]} g6 {[%emt 0:00:02]} 4. Be3 {[%emt 0:00:11]} c6 {[%emt 0:00:14]} 5. f3 {[%emt 0:00:08]} b5 {[%emt 0:00:07]} 6. a3 {[%emt 0:00:09]} a6 {[%emt 0:00:03] B07: Pirc Defence: Miscellaneous Systems.} 7. Qd2 {[%emt 0:00:07]} Nbd7 {[%emt 0:00:03]} 8. Bh6 {[%emt 0:00:10] [#]} ({Better is} 8. g4 $14) 8... Bb7 $146 {[%emt 0:00:15] The position is equal.} ({Predecessor:} 8... e5 9. Bxf8 Nxf8 10. f4 Qe7 11. Nf3 exd4 12. Qxd4 c5 13. Qd3 Bb7 14. O-O-O Nxe4 {0-1 (24) Flis,J (2291)-Mista,A (2443) Polanica Zdroj 2004}) 9. Bxf8 {[%emt 0:00:11]} Rxf8 {[%emt 0:00:03]} 10. g4 {[%emt 0:00:06]} c5 {[%emt 0:00:15]} 11. h4 {[%emt 0:00:37]} cxd4 {[%emt 0:00:40]} 12. Qxd4 {[%emt 0:00:10]} Qb6 {[%emt 0:00:05]} 13. Qd3 {[%emt 0:00:38]} (13. Nge2 $11) 13... Ne5 $17 {[%emt 0:00:13] Black is more active.} 14. Qd1 {[%emt 0:00:25] Loses the game.} (14. Qe2 $17) 14... Rc8 {[%emt 0:00:09][%cal Oc8c3] And now ...Rxc3! would win.} 15. Bh3 $2 {[%emt 0:00:20]} (15. Be2) 15... Qe3+ $19 {[%emt 0:00:18]} 16. Qe2 {[%emt 0:01:04]} Rxc3 {[%emt 0:00:04]} 17. g5 {[%emt 0:01:33] [#]} (17. Qxe3 $142 Rxe3+ 18. Kf2 Nfxg4+ 19. Bxg4 Nxg4+ 20. fxg4 Rxe4 21. Rh2) 17... Nxe4 $1 {[%emt 0:00:59]} 18. fxe4 {[%emt 0:01:52]} Bxe4 {[%emt 0:00:57]} 19. bxc3 {[%emt 0:02:15]} Qxc3+ {[%emt 0:00:10]} 20. Kf2 Bxh1 {[%emt 0:00:09]} 21. Rd1 {[%emt 0:01:04]} f6 {[%emt 0:00:02][%cal Bf7f6,Bf6g5][%mdl 32] [#] ( -> ...fxg5+)} 22. Rd2 {[%emt 0:01:14]} fxg5+ {[%emt 0:00:03] Black mates.} 23. Ke1 {[%emt 0:00:03]} Qg3+ {[%emt 0:00:10]} 24. Qf2 {[%emt 0:00:38]} Rxf2 {[%emt 0:00:02] Weighted Error Value: White=1.54/Black=0.26 (precise)} 0-1

[Event "Czech Open-Rapid 2022"]
[Site "Pardubice"]
[Date "2022.07.20"]
[Round "1.40"]
[White "Jonsson, Gauti Pall"]
[Black "Halousek, Jaroslav"]
[Result "1-0"]
[ECO "B23"]
[WhiteElo "2071"]
[BlackElo "1562"]
[Annotator "TA"]
[PlyCount "73"]
[EventDate "2022.07.20"]
[EventType "swiss"]
[EventCountry "CZE"]
[SourceTitle "playchess.com"]
[Source "ChessBase"]
[SourceQuality "1"]
[TimeControl "1200+10"]

{[%evp 9,73,0,0,0,0,0,20,-39,-12,-169,-147,-194,-103,-120,-39,-40,-41,-77,-58,-67,-26,-35,-33,-41,-43,-89,-87,-88,-95,-91,-41,-70,-32,-98,-16,-17,-17,-44,-6,-6,0,0,0,0,0,0,0,0,0,0,0,0,0,0,0,0,0,0,35,40,114,50,153,149,235,172]} 1. e4 {[%emt 0:00:04]} c5 {[%emt 0:00:01]} 2. Nc3 {[%emt 0:00:09]} g6 {[%emt 0:00:05]} 3. d4 {[%emt 0:00:21]} cxd4 {[%emt 0:00:16]} 4. Qxd4 {[%emt 0:00:03]} Nf6 {[%emt 0:00:14]} 5. Bb5 {[%emt 0:00:14]} a6 {[%emt 0:02:41]} 6. e5 {[%emt 0:00:04] B23: Closed Sicilian: Lines without g3.} axb5 {[%emt 0:00:11]} 7. exf6 {[%emt 0:00:03]} Nc6 {[%emt 0:00:47]} 8. Qe4 {[%emt 0:01:15]} (8. Qd3 $11) 8... e6 {[%emt 0:02:41] [#] ...b4 is the strong threat.} (8... d5 $5 {[%cal Rd5e4]} 9. fxe7 (9. Nxd5 Ra4 $17) (9. Qxd5 Nd4 $15) 9... Bxe7 10. Nxd5 f5 $17) 9. Nd5 $146 {[%emt 0:01:31] [#]} (9. Nf3 $11 {and White has nothing to worry.}) ({Predecessor:} 9. Nxb5 Qa5+ 10. Nc3 d5 11. Qd3 d4 12. Bd2 dxc3 13. Bxc3 Bb4 14. Ne2 Bxc3+ 15. Nxc3 {0-1 (32) Ghomi,P (1948)-Velpula,S (1717) Mumbai 2019}) 9... Ra4 $19 {[%emt 0:02:19]} 10. Qe3 {[%emt 0:03:32]} Rd4 {[%emt 0:00:14]} (10... Nd4 $19 11. Qd3 exd5) 11. Ne7 {[%emt 0:01:09]} Bxe7 {[%emt 0:01:21]} (11... Rc4 $17 {Strongly threatening ...Nd4.} 12. b3 Rxc2) 12. fxe7 $15 {[%emt 0:00:03]} Qxe7 {[%emt 0:00:05]} 13. c3 {[%emt 0:00:31]} Rd5 {[%emt 0:00:36] [#] Threatens to win with ...Re5.} 14. Nf3 {[%emt 0:00:18] Against Re5} Qf6 {[%emt 0:02:32]} 15. O-O {[%emt 0:00:29]} O-O {[%emt 0:01:34]} 16. Re1 {[%emt 0:00:15]} d6 {[%emt 0:00:18]} 17. b3 {[%emt 0:00:47]} (17. Qb6 $15) 17... Nb4 $17 {[%emt 0:00:53]} 18. Qe2 {[%emt 0:01:25] Against Nc2} Nd3 {[%emt 0:00:38]} ({Don't take} 18... Qxc3 19. Bd2 Rxd2 20. Nxd2 $14 (20. Qxd2 $2 {is the wrong capture.} Qxd2 21. Nxd2 Nc2 $19)) 19. Rd1 {[%emt 0:02:12]} Nxc1 {[%emt 0:00:25]} ({Black should try} 19... Qxc3 $17 20. Bh6 Re8) 20. Raxc1 $15 {[%emt 0:00:07]} Rxd1+ {[%emt 0:01:09]} 21. Qxd1 {[%emt 0:00:02]} ({Better is} 21. Rxd1 $15 Qxc3 22. Rxd6) 21... Bd7 {[%emt 0:00:00]} (21... Qf4 $17) 22. Qxd6 $11 {[%emt 0:01:05]} Bc6 {[%emt 0:00:02]} 23. Qe5 {[%emt 0:01:26]} Qxe5 {[%emt 0:01:05]} (23... Kg7 $5) 24. Nxe5 {[%emt 0:00:02]} Rd8 {[%emt 0:00:01]} 25. Nxc6 {[%emt 0:00:29]} bxc6 {[%emt 0:00:01][%mdl 4096] Endgame KR-KR} 26. a4 {[%emt 0:00:02]} bxa4 {[%emt 0:00:17]} 27. bxa4 {[%emt 0:00:05]} Ra8 {[%emt 0:00:01]} 28. Ra1 {[%emt 0:00:02]} Ra5 {[%emt 0:00:00]} 29. Kf1 {[%emt 0:00:12]} f5 {[%emt 0:01:03]} 30. Ke2 {[%emt 0:00:09]} Kf7 {[%emt 0:00:05]} 31. Kd3 {[%emt 0:00:03]} e5 {[%emt 0:02:18]} 32. Kc4 {[%emt 0:00:11]} Ke6 {[%emt 0:00:03]} 33. Kb4 {[%emt 0:00:03]} Ra8 {[%emt 0:00:02]} 34. Kc5 {[%emt 0:00:20]} e4 {[%emt 0:00:11]} (34... Ra6 $14) 35. a5 {[%emt 0:00:52]} (35. Kxc6 $16 {And now a5 would win.} Rc8+ 36. Kb5) 35... Kd7 {[%emt 0:01:16]} ({Black should play} 35... Ra6 $1 $14) 36. a6 $16 {[%emt 0:00:16] Hoping for g3.} f4 {[%emt 0:00:11]} (36... Kc7 $16 {was necessary.}) 37. Kd4 {[%emt 0:00:12] Weighted Error Value: White=0.23 (precise) /Black=0.27 (precise)} 1-0

[Event "Czech Open-Rapid 2022"]
[Site "Pardubice"]
[Date "2022.07.20"]
[Round "1.41"]
[White "Kvapil, Pavel"]
[Black "Sosnik, Sebastian"]
[Result "1/2-1/2"]
[ECO "B32"]
[WhiteElo "1499"]
[BlackElo "2255"]
[Annotator "TA"]
[PlyCount "84"]
[EventDate "2022.07.20"]
[EventType "swiss"]
[EventCountry "CZE"]
[SourceTitle "playchess.com"]
[Source "ChessBase"]
[SourceQuality "1"]
[TimeControl "1200+10"]

{[%evp 16,84,-2,-33,-33,-59,-59,-60,-57,-56,-25,-37,2,-50,-49,-44,-52,-84,-72,-73,-67,-92,-69,-67,-33,-79,-79,-199,-195,-197,-204,-226,-226,-277,-283,-291,-285,-295,-295,-412,-414,-380,-380,-396,-222,-208,-33,-33,-33,-33,-22,-62,-33,-35,0,0,0,0,0,0,0,-58,0,0,0,0,0,0,0,0,0]} 1. e4 {[%emt 0:00:02]} c5 {[%emt 0:00:05]} 2. Nf3 {[%emt 0:00:02]} Nc6 {[%emt 0:00:03]} 3. d4 {[%emt 0:00:02]} cxd4 {[%emt 0:00:03]} 4. Nxd4 {[%emt 0:00:03]} e5 {[%emt 0:00:14]} 5. Nf3 {[%emt 0:00:08]} Nf6 {[%emt 0:00:20]} 6. Nc3 {[%emt 0:00:11]} Bb4 {[%emt 0:00:07]} 7. Bd3 {[%emt 0:00:08]} d5 {[%emt 0:00:21]} 8. exd5 {[%emt 0:00:55]} Nxd5 {[%emt 0:00:04]} 9. Bd2 {[%emt 0:00:17]} Bxc3 {[%emt 0:00:31] B33: Sicilian: Pelikan and Sveshnikov Variations.} 10. Bxc3 {[%emt 0:00:26]} Nxc3 {[%emt 0:00:13]} 11. bxc3 {[%emt 0:00:02]} O-O {[%emt 0:00:11][%cal Oe5e4] Black is slightly better.} 12. O-O {[%emt 0:00:12]} Bg4 {[%emt 0:00:19]} 13. Be4 {[%emt 0:00:38] [#]} Qa5 $146 {[%emt 0:03:14] [#]} ({Predecessor:} 13... Qc7 14. Qe2 Bh5 15. Rfd1 Bg6 16. Rd2 Bxe4 17. Qxe4 Rad8 18. Rad1 Rxd2 19. Rxd2 Rd8 {0-1 (57) Homann,C (1610)-Serrer,D (1892) Playchess.com INT 2020}) 14. Bxc6 {[%emt 0:01:39]} (14. Bxh7+ $1 $11 Kh8 15. Be4) 14... bxc6 $15 {[%emt 0:00:04]} 15. Qd3 {[%emt 0:00:18]} Rad8 {[%emt 0:02:33]} 16. Qe3 {[%emt 0:00:20]} Rfe8 {[%emt 0:00:03]} 17. Rfe1 {[%emt 0:01:18][%cal Rf3e5]} f6 {[%emt 0:06:02]} 18. Nd2 {[%emt 0:01:09]} Qd5 {[%emt 0:00:47]} 19. Nb3 {[%emt 0:00:58]} a5 {[%emt 0:00:22][%cal Ba7a5,Ba5a4][%mdl 32]} 20. f3 {[%emt 0:00:55]} (20. h3 $15 Bf5 21. c4 Qxc4 22. Nxa5 Qxc2 23. Rec1) 20... Bf5 $17 {[%emt 0:00:16]} 21. Qe2 {[%emt 0:00:47]} (21. a4 $17) 21... a4 $19 {[%emt 0:00:52]} 22. Rad1 {[%emt 0:00:53]} Qb5 {[%emt 0:00:06]} 23. Rxd8 {[%emt 0:01:05]} Rxd8 {[%emt 0:00:04]} 24. Nd2 {[%emt 0:05:22]} Qc5+ {[%emt 0:01:05]} ({Don't go for} 24... Bxc2 $2 25. Ne4 Bxe4 26. Qxe4 $19) 25. Kh1 {[%emt 0:00:21]} Qxc3 {[%emt 0:00:06]} ({Wrong is} 25... Bxc2 $2 26. Qc4+ Qd5 27. h3 $19) 26. Ne4 {[%emt 0:00:51]} Bxe4 {[%emt 0:00:58]} 27. Qxe4 {[%emt 0:00:13][%mdl 4096] Endgame KQR-KQR} Rd4 {[%emt 0:00:29]} 28. Qe2 {[%emt 0:00:19]} Rd2 {[%emt 0:00:04]} 29. Qa6 {[%emt 0:01:42]} Rd8 {[%emt 0:02:56]} (29... Qxc2 $142 30. Qa8+ Kf7) 30. Qe2 {[%emt 0:00:51]} Qd2 $2 {[%emt 0:00:51]} ({Don't blunder} 30... Rd2 $2 31. Qa6 Qxc2 32. Qc8+ Kf7 33. a3 $19) (30... Rd4 $19 {...Rd2 is the strong threat.} 31. Rd1 Qc4 32. Qxc4+ Rxc4) 31. Qc4+ $1 $15 {[%emt 0:00:53]} Kh8 {[%emt 0:00:18]} (31... Kf8 {feels hotter.} 32. Rg1 a3 33. Qxc6 Qd5) 32. Rg1 {[%emt 0:00:28]} h6 {[%emt 0:00:36]} 33. Qxc6 {[%emt 0:00:20]} a3 {[%emt 0:00:08]} 34. h3 {[%emt 0:00:12]} Qf4 {[%emt 0:00:23]} 35. Qc5 {[%emt 0:00:30]} Rd2 {[%emt 0:00:50]} 36. Qxa3 {[%emt 0:00:39]} Rxc2 {[%emt 0:00:03]} 37. Qa8+ {[%emt 0:00:23]} Kh7 {[%emt 0:00:01]} 38. a4 {[%emt 0:00:09]} (38. Ra1 $11) 38... Rc1 {[%emt 0:00:04]} ({Better is} 38... Ra2 $1 $15) 39. Rxc1 $11 {[%emt 0:00:06] The position is equal.} Qxc1+ {[%emt 0:00:01]} 40. Kh2 {[%emt 0:00:02]} Qf4+ {[%emt 0:00:03]} 41. Kg1 {[%emt 0:00:11] [#] Black must now prevent Qe4+.} Qc1+ {[%emt 0:00:01]} 42. Kh2 {[%emt 0:00:02]} Qf4+ {[%emt 0:00:02] Black had all chances to win.  Weighted Error Value: White=0.20 (precise) /Black=0.26 (precise)} 1/2-1/2